[Event "Live Chess"]
[Site "Chess.com"]
[Date "2023.05.20"]
[Round "-"]
[White "guptarayan"]
[Black "KeithArkell"]
[Result "0-1"]
[WhiteElo "541"]
[BlackElo "2608"]
[TimeControl "300"]
[EndTime "9:15:08 PDT"]
[Termination "KeithArkell won by checkmate"]

1. e4 {[%clk 0:04:58.9]} 1... c6 {[%clk 0:04:57.3]} 2. d4 {[%clk 0:04:57.3]}
2... d5 {[%clk 0:04:56.5]} 3. e5 {[%clk 0:04:56.4]} 3... c5 {[%clk 0:04:55.7]}
4. c3 {[%clk 0:04:54.7]} 4... Nc6 {[%clk 0:04:54.9]} 5. f4 {[%clk 0:04:51.7]}
5... cxd4 {[%clk 0:04:43.1]} 6. cxd4 {[%clk 0:04:49.5]} 6... Bf5 {[%clk
0:04:40.5]} 7. g4 {[%clk 0:04:43.1]} 7... Be4 {[%clk 0:04:38.5]} 8. Nf3 {[%clk
0:04:38]} 8... h5 {[%clk 0:04:35.5]} 9. gxh5 {[%clk 0:04:35.7]} 9... Rxh5 {[%clk
0:04:33.5]} 10. Be2 {[%clk 0:04:34]} 10... Nh6 {[%clk 0:04:31.9]} 11. Nfd2
{[%clk 0:04:30]} 11... Bxh1 {[%clk 0:04:27.7]} 12. Bxh5 {[%clk 0:04:28]} 12...
e6 {[%clk 0:04:26.7]} 13. Ke2 {[%clk 0:04:23.3]} 13... Qh4 {[%clk 0:04:22.3]}
14. Bf3 {[%clk 0:04:16.6]} 14... Nxd4+ {[%clk 0:04:18.9]} 15. Ke3 {[%clk
0:04:13.9]} 15... Nhf5+ {[%clk 0:04:14.3]} 16. Kd3 {[%clk 0:04:10.6]} 16... Bxf3
{[%clk 0:04:08.4]} 17. Nxf3 {[%clk 0:04:03.7]} 17... Qh3 {[%clk 0:04:00.1]} 18.
Kd2 {[%clk 0:03:58.3]} 18... Nxf3+ {[%clk 0:03:56.7]} 19. Ke2 {[%clk 0:03:46.1]}
19... N3d4+ {[%clk 0:03:55]} 20. Kf2 {[%clk 0:03:40.7]} 20... Qxh2+ {[%clk
0:03:52.5]} 21. Ke1 {[%clk 0:03:35.9]} 21... Qg2 {[%clk 0:03:44.2]} 22. Nc3
{[%clk 0:03:32.4]} 22... Nf3+ {[%clk 0:03:42]} 23. Qxf3 {[%clk 0:03:23.7]} 23...
Qxf3 {[%clk 0:03:41.9]} 24. Nd1 {[%clk 0:03:21.4]} 24... Nd4 {[%clk 0:03:39.8]}
25. Nf2 {[%clk 0:03:14.2]} 25... Qe2# {[%clk 0:03:37.7]} 0-1

[Event "Live Chess"]
[Site "Chess.com"]
[Date "2023.05.20"]
[Round "-"]
[White "YF22Raptor"]
[Black "Hussamalhaidar"]
[Result "1-0"]
[WhiteElo "1024"]
[BlackElo "995"]
[TimeControl "300"]
[EndTime "9:15:10 PDT"]
[Termination "YF22Raptor won on time"]

1. e4 {[%clk 0:04:56.6]} 1... Nc6 {[%clk 0:04:52.3]} 2. Nf3 {[%clk 0:04:54.8]}
2... e5 {[%clk 0:04:47.1]} 3. d4 {[%clk 0:04:53.5]} 3... exd4 {[%clk 0:04:41.1]}
4. Bc4 {[%clk 0:04:51.7]} 4... h6 {[%clk 0:04:32.5]} 5. Nxd4 {[%clk 0:04:47.7]}
5... Nf6 {[%clk 0:04:20.6]} 6. O-O {[%clk 0:04:44.4]} 6... Bc5 {[%clk 0:04:10]}
7. Nxc6 {[%clk 0:04:33.4]} 7... bxc6 {[%clk 0:04:03.3]} 8. Nc3 {[%clk
0:04:28.8]} 8... O-O {[%clk 0:03:57.7]} 9. Re1 {[%clk 0:04:22.2]} 9... d6 {[%clk
0:03:52.7]} 10. h3 {[%clk 0:04:20.7]} 10... Bb6 {[%clk 0:03:40.6]} 11. Be3
{[%clk 0:04:00.4]} 11... Nxe4 {[%clk 0:03:28.2]} 12. Nxe4 {[%clk 0:03:58]} 12...
Bb7 {[%clk 0:03:18.4]} 13. Bxb6 {[%clk 0:03:55]} 13... axb6 {[%clk 0:03:11.8]}
14. Nc3 {[%clk 0:03:50.9]} 14... d5 {[%clk 0:03:07.2]} 15. Bd3 {[%clk
0:03:46.4]} 15... c5 {[%clk 0:03:03.8]} 16. b3 {[%clk 0:03:39.8]} 16... d4
{[%clk 0:02:59.7]} 17. Nb5 {[%clk 0:03:36.4]} 17... c6 {[%clk 0:02:54]} 18. a4
{[%clk 0:03:02.2]} 18... cxb5 {[%clk 0:02:49.8]} 19. Bxb5 {[%clk 0:03:00.8]}
19... Ba6 {[%clk 0:02:45.9]} 20. Qd3 {[%clk 0:02:57.3]} 20... Bb7 {[%clk
0:02:39]} 21. Re2 {[%clk 0:02:50.6]} 21... f5 {[%clk 0:02:26.2]} 22. Rae1 {[%clk
0:02:46]} 22... Be4 {[%clk 0:02:23]} 23. Qc4+ {[%clk 0:02:32.9]} 23... Kh8
{[%clk 0:02:14.9]} 24. f3 {[%clk 0:02:29.9]} 24... Bd5 {[%clk 0:02:09.4]} 25.
Qd3 {[%clk 0:02:27.2]} 25... Ra7 {[%clk 0:01:59.8]} 26. Re5 {[%clk 0:02:16.4]}
26... Raf7 {[%clk 0:01:49.8]} 27. Re8 {[%clk 0:02:10.9]} 27... Qf6 {[%clk
0:01:31.9]} 28. Rxf8+ {[%clk 0:02:02.3]} 28... Rxf8 {[%clk 0:01:30.1]} 29. Re8
{[%clk 0:01:49.6]} 29... Rxe8 {[%clk 0:01:27.4]} 30. Bxe8 {[%clk 0:01:48.3]}
30... g6 {[%clk 0:01:20.7]} 31. Bb5 {[%clk 0:01:43.5]} 31... Bc6 {[%clk
0:01:16.9]} 32. Bxc6 {[%clk 0:01:34.1]} 32... Qxc6 {[%clk 0:01:15.5]} 33. Qd2
{[%clk 0:01:27.4]} 33... Kg7 {[%clk 0:01:13.3]} 34. Kf2 {[%clk 0:01:25.5]} 34...
b5 {[%clk 0:01:08.6]} 35. axb5 {[%clk 0:01:22.3]} 35... Qxb5 {[%clk 0:01:07.3]}
36. f4 {[%clk 0:01:14.5]} 36... c4 {[%clk 0:01:02.5]} 37. Qxd4+ {[%clk
0:01:12.6]} 37... Kf7 {[%clk 0:00:53.6]} 38. Qxc4+ {[%clk 0:01:09.2]} 38... Qxc4
{[%clk 0:00:47.6]} 39. bxc4 {[%clk 0:01:08.3]} 39... Ke6 {[%clk 0:00:46.6]} 40.
c3 {[%clk 0:01:05.2]} 40... Kd6 {[%clk 0:00:43.2]} 41. Ke3 {[%clk 0:01:03.6]}
41... Kc5 {[%clk 0:00:42.3]} 42. g4 {[%clk 0:01:01.1]} 42... Kxc4 {[%clk
0:00:39.4]} 43. gxf5 {[%clk 0:00:49.9]} 43... gxf5 {[%clk 0:00:37.8]} 44. Kd2
{[%clk 0:00:48.4]} 44... Kd5 {[%clk 0:00:33.1]} 45. Kd3 {[%clk 0:00:45.5]} 45...
Kc5 {[%clk 0:00:31.1]} 46. h4 {[%clk 0:00:43.8]} 46... h5 {[%clk 0:00:24.3]} 47.
c4 {[%clk 0:00:42.1]} 47... Kd6 {[%clk 0:00:22.3]} 48. Kd4 {[%clk 0:00:40.9]}
48... Kc6 {[%clk 0:00:19.6]} 49. c5 {[%clk 0:00:39.6]} 49... Kd7 {[%clk
0:00:17.8]} 50. Kd5 {[%clk 0:00:38.8]} 50... Kc7 {[%clk 0:00:16.8]} 51. c6
{[%clk 0:00:37.7]} 51... Kd8 {[%clk 0:00:15.6]} 52. Kd6 {[%clk 0:00:36.3]} 52...
Kc8 {[%clk 0:00:14.8]} 53. c7 {[%clk 0:00:33.5]} 53... Kb7 {[%clk 0:00:11]} 54.
Kd7 {[%clk 0:00:32.4]} 54... Kb6 {[%clk 0:00:09.7]} 55. c8=Q {[%clk 0:00:31.1]}
55... Kb5 {[%clk 0:00:08.8]} 56. Ke7 {[%clk 0:00:30.2]} 56... Kb4 {[%clk
0:00:07.6]} 57. Qxf5 {[%clk 0:00:29.9]} 57... Kb3 {[%clk 0:00:06.4]} 58. Qxh5
{[%clk 0:00:29.6]} 58... Ka2 {[%clk 0:00:05.9]} 59. f5 {[%clk 0:00:29.3]} 59...
Kb1 {[%clk 0:00:05.3]} 60. f6 {[%clk 0:00:29]} 60... Kb2 {[%clk 0:00:04.6]} 61.
f7 {[%clk 0:00:28.7]} 61... Kc2 {[%clk 0:00:04.1]} 62. f8=Q {[%clk 0:00:28]}
62... Kc3 {[%clk 0:00:04]} 63. Qff5 {[%clk 0:00:26.9]} 63... Kd4 {[%clk
0:00:03.4]} 64. Qf4+ {[%clk 0:00:24.5]} 64... Kd3 {[%clk 0:00:02.3]} 65. Qhf3+
{[%clk 0:00:24.2]} 65... Kc2 {[%clk 0:00:00.9]} 66. Qh2+ {[%clk 0:00:23.9]} 1-0

[Event "Live Chess"]
[Site "Chess.com"]
[Date "2023.05.20"]
[Round "-"]
[White "lateforthesky"]
[Black "Tushinskiy"]
[Result "1-0"]
[WhiteElo "2137"]
[BlackElo "2102"]
[TimeControl "300"]
[EndTime "9:15:11 PDT"]
[Termination "lateforthesky won on time"]

1. e4 {[%clk 0:04:57.2]} 1... e5 {[%clk 0:04:48.1]} 2. Nf3 {[%clk 0:04:55.5]}
2... d6 {[%clk 0:04:28.7]} 3. Nc3 {[%clk 0:04:52.6]} 3... Bg4 {[%clk 0:02:12]}
4. h3 {[%clk 0:04:43.1]} 4... Bh5 {[%clk 0:02:10.3]} 5. g4 {[%clk 0:04:37.1]}
5... Bg6 {[%clk 0:02:03.5]} 6. d4 {[%clk 0:04:35.3]} 6... Nd7 {[%clk 0:01:40.2]}
7. Bc4 {[%clk 0:04:28.5]} 7... Ngf6 {[%clk 0:01:38.7]} 8. Qe2 {[%clk 0:04:12.3]}
8... c6 {[%clk 0:01:37.3]} 9. a4 {[%clk 0:04:10.6]} 9... Qc7 {[%clk 0:01:36.2]}
10. Bg5 {[%clk 0:04:05.3]} 10... Be7 {[%clk 0:01:35.1]} 11. O-O-O {[%clk
0:04:02.5]} 11... a6 {[%clk 0:01:33.1]} 12. h4 {[%clk 0:03:59.1]} 12... h6
{[%clk 0:01:31]} 13. h5 {[%clk 0:03:44.4]} 13... Bh7 {[%clk 0:01:29.5]} 14. Bxf6
{[%clk 0:03:35.1]} 14... Bxf6 {[%clk 0:01:29.4]} 15. Kb1 {[%clk 0:03:31.9]}
15... b5 {[%clk 0:01:27.9]} 16. Bb3 {[%clk 0:03:27.9]} 16... bxa4 {[%clk
0:01:26.1]} 17. Nxa4 {[%clk 0:03:25.2]} 17... O-O {[%clk 0:01:24.3]} 18. g5
{[%clk 0:03:20.6]} 18... hxg5 {[%clk 0:01:22.7]} 19. h6 {[%clk 0:03:19.5]} 19...
g6 {[%clk 0:01:21.3]} 20. Nh2 {[%clk 0:03:09.3]} 20... Rab8 {[%clk 0:01:20.4]}
21. Ng4 {[%clk 0:03:07.6]} 21... Be7 {[%clk 0:01:18.9]} 22. Qe3 {[%clk
0:02:50.9]} 22... Kh8 {[%clk 0:01:16.5]} 23. Rd2 {[%clk 0:02:35.9]} 23... exd4
{[%clk 0:01:12.7]} 24. Qxd4+ {[%clk 0:02:31.9]} 24... Ne5 {[%clk 0:01:11.9]} 25.
Rhd1 {[%clk 0:02:19.9]} 25... f5 {[%clk 0:00:54.3]} 26. Nxe5 {[%clk 0:02:10.9]}
26... dxe5 {[%clk 0:00:52.7]} 27. Qd7 {[%clk 0:02:09.6]} 27... Qxd7 {[%clk
0:00:50.5]} 28. Rxd7 {[%clk 0:02:07]} 28... Bf6 {[%clk 0:00:49.4]} 29. R1d6
{[%clk 0:01:58.6]} 29... g4 {[%clk 0:00:47]} 30. Nc5 {[%clk 0:01:50.4]} 30...
Bh4 {[%clk 0:00:30.4]} 31. Nxa6 {[%clk 0:01:36.8]} 31... Rbc8 {[%clk 0:00:21.8]}
32. Rb7 {[%clk 0:01:22.3]} 32... Rcd8 {[%clk 0:00:18.6]} 33. Rxc6 {[%clk
0:01:19.2]} 33... Bg8 {[%clk 0:00:15.3]} 34. Bxg8 {[%clk 0:01:12.3]} 34... Kxg8
{[%clk 0:00:14.3]} 35. Rcc7 {[%clk 0:01:11.4]} 35... Bf6 {[%clk 0:00:13.5]} 36.
Nc5 {[%clk 0:00:53.4]} 36... Ra8 {[%clk 0:00:12.2]} 37. Ne6 {[%clk 0:00:50.8]}
37... Rfc8 {[%clk 0:00:09.8]} 38. exf5 {[%clk 0:00:36.8]} 38... gxf5 {[%clk
0:00:08.4]} 39. Rg7+ {[%clk 0:00:29.7]} 39... Bxg7 {[%clk 0:00:06.7]} 40. Rxg7+
{[%clk 0:00:28.4]} 40... Kh8 {[%clk 0:00:06.6]} 41. Ng5 {[%clk 0:00:27.3]} 41...
Rf8 {[%clk 0:00:04.2]} 42. Nf7+ {[%clk 0:00:25.2]} 42... Rxf7 {[%clk 0:00:03.5]}
43. Rxf7 {[%clk 0:00:24.5]} 43... f4 {[%clk 0:00:02.6]} 44. Rg7 {[%clk
0:00:22.7]} 44... Rg8 {[%clk 0:00:02.1]} 45. Rf7 {[%clk 0:00:19.1]} 45... g3
{[%clk 0:00:01.2]} 46. fxg3 {[%clk 0:00:18.2]} 46... fxg3 {[%clk 0:00:00.9]} 47.
Rf1 {[%clk 0:00:17.3]} 47... g2 {[%clk 0:00:00.8]} 48. Rg1 {[%clk 0:00:16.3]}
48... Kh7 {[%clk 0:00:00.7]} 49. b4 {[%clk 0:00:14.2]} 49... Kxh6 {[%clk
0:00:00.6]} 50. Kb2 {[%clk 0:00:13.6]} 50... Kh5 {[%clk 0:00:00.5]} 51. Kb3
{[%clk 0:00:12.8]} 51... Kh4 {[%clk 0:00:00.4]} 52. c4 {[%clk 0:00:11.8]} 52...
Kg3 {[%clk 0:00:00.3]} 53. b5 {[%clk 0:00:10.5]} 1-0

[Event "Live Chess"]
[Site "Chess.com"]
[Date "2023.05.20"]
[Round "-"]
[White "MJMykh"]
[Black "MaximKris"]
[Result "0-1"]
[WhiteElo "951"]
[BlackElo "1794"]
[TimeControl "300"]
[EndTime "9:15:16 PDT"]
[Termination "MaximKris won by checkmate"]

1. e4 {[%clk 0:04:58.9]} 1... e5 {[%clk 0:04:59]} 2. Nf3 {[%clk 0:04:57.5]} 2...
Nc6 {[%clk 0:04:58.5]} 3. Nc3 {[%clk 0:04:56.5]} 3... Nf6 {[%clk 0:04:57.1]} 4.
Bc4 {[%clk 0:04:55.9]} 4... Bc5 {[%clk 0:04:56.2]} 5. Ng5 {[%clk 0:04:54.7]}
5... O-O {[%clk 0:04:55]} 6. Nxf7 {[%clk 0:04:53.2]} 6... Rxf7 {[%clk
0:04:54.9]} 7. Bxf7+ {[%clk 0:04:52.8]} 7... Kxf7 {[%clk 0:04:54.8]} 8. O-O
{[%clk 0:04:52.7]} 8... d6 {[%clk 0:04:54.3]} 9. h3 {[%clk 0:04:52.2]} 9... Be6
{[%clk 0:04:53.9]} 10. d3 {[%clk 0:04:51.2]} 10... h6 {[%clk 0:04:53.3]} 11. Na4
{[%clk 0:04:49.3]} 11... Qd7 {[%clk 0:04:52.5]} 12. Nxc5 {[%clk 0:04:48.6]}
12... dxc5 {[%clk 0:04:52.4]} 13. a3 {[%clk 0:04:48.1]} 13... Bxh3 {[%clk
0:04:51.1]} 14. gxh3 {[%clk 0:04:46.2]} 14... Qxh3 {[%clk 0:04:51]} 15. Be3
{[%clk 0:04:43.5]} 15... Ng4 {[%clk 0:04:48.7]} 16. Qxg4 {[%clk 0:04:08.8]}
16... Qxg4+ {[%clk 0:04:48.6]} 17. Kh2 {[%clk 0:04:08.7]} 17... Rh8 {[%clk
0:04:42.5]} 18. Bxc5 {[%clk 0:04:06.4]} 18... Qh4+ {[%clk 0:04:41.5]} 19. Kg2
{[%clk 0:04:05.2]} 19... g5 {[%clk 0:04:41.4]} 20. b4 {[%clk 0:03:58]} 20...
Qg4+ {[%clk 0:04:40.5]} 21. Kh2 {[%clk 0:03:56.7]} 21... h5 {[%clk 0:04:40.4]}
22. b5 {[%clk 0:03:54.7]} 22... Qf4+ {[%clk 0:04:38.7]} 23. Kg2 {[%clk
0:03:53.3]} 23... h4 {[%clk 0:04:38.6]} 24. bxc6 {[%clk 0:03:52.2]} 24... h3+
{[%clk 0:04:38.5]} 25. Kh1 {[%clk 0:03:50.7]} 25... Qf3+ {[%clk 0:04:37.7]} 26.
Kh2 {[%clk 0:03:48.3]} 26... Qg2# {[%clk 0:04:37.6]} 0-1

[Event "Live Chess"]
[Site "Chess.com"]
[Date "2023.05.20"]
[Round "-"]
[White "LaupMiths"]
[Black "MartinWalker4"]
[Result "0-1"]
[WhiteElo "1805"]
[BlackElo "2137"]
[TimeControl "300"]
[EndTime "9:15:23 PDT"]
[Termination "MartinWalker4 won by resignation"]

1. d4 {[%clk 0:04:50.9]} 1... Nf6 {[%clk 0:04:57.8]} 2. Nf3 {[%clk 0:04:48.3]}
2... g6 {[%clk 0:04:55]} 3. g3 {[%clk 0:04:46.9]} 3... Bg7 {[%clk 0:04:50.6]} 4.
Bg2 {[%clk 0:04:45]} 4... O-O {[%clk 0:04:49.2]} 5. O-O {[%clk 0:04:43.9]} 5...
d6 {[%clk 0:04:40.4]} 6. b3 {[%clk 0:04:41.4]} 6... c5 {[%clk 0:04:37.6]} 7. Bb2
{[%clk 0:04:38.5]} 7... Nfd7 {[%clk 0:04:32.5]} 8. e3 {[%clk 0:04:37.3]} 8...
Nc6 {[%clk 0:04:30.3]} 9. c4 {[%clk 0:04:35.4]} 9... cxd4 {[%clk 0:04:12]} 10.
exd4 {[%clk 0:04:33.6]} 10... Qc7 {[%clk 0:04:02.2]} 11. Na3 {[%clk 0:04:29]}
11... a6 {[%clk 0:03:58.2]} 12. Rc1 {[%clk 0:04:27.9]} 12... e5 {[%clk
0:03:25.4]} 13. dxe5 {[%clk 0:04:03.7]} 13... Ndxe5 {[%clk 0:03:21.7]} 14. h3
{[%clk 0:04:00]} 14... Bf5 {[%clk 0:03:15]} 15. Nxe5 {[%clk 0:03:49.8]} 15...
Nxe5 {[%clk 0:03:09.5]} 16. Qd2 {[%clk 0:03:44.2]} 16... Rad8 {[%clk 0:02:54.6]}
17. Nb1 {[%clk 0:03:29.8]} 17... Bxh3 {[%clk 0:02:48.5]} 18. Bxe5 {[%clk
0:03:24.8]} 18... dxe5 {[%clk 0:02:46.7]} 19. Qe3 {[%clk 0:03:12.9]} 19... Bxg2
{[%clk 0:02:45]} 20. Kxg2 {[%clk 0:03:11.8]} 20... Qc6+ {[%clk 0:02:41.2]} 21.
Kh2 {[%clk 0:03:07]} 21... e4 {[%clk 0:02:33.2]} 22. Nd2 {[%clk 0:03:01.5]}
22... Rd3 {[%clk 0:02:29.7]} 23. Qe2 {[%clk 0:02:57.2]} 23... f5 {[%clk
0:02:25.4]} 24. b4 {[%clk 0:02:46.7]} 24... Bh6 {[%clk 0:02:20.4]} 25. Rc2
{[%clk 0:02:43.2]} 25... Rfd8 {[%clk 0:02:17.8]} 26. Nb3 {[%clk 0:02:41.7]}
26... b6 {[%clk 0:02:09.8]} 27. b5 {[%clk 0:02:24.4]} 27... axb5 {[%clk
0:02:02.7]} 28. cxb5 {[%clk 0:02:22.9]} 28... Qxb5 {[%clk 0:02:00.9]} 29. Rc7
{[%clk 0:02:20.3]} 29... Qe5 {[%clk 0:01:36.3]} 30. Qc2 {[%clk 0:02:08.8]} 30...
f4 {[%clk 0:01:31.5]} 31. Rg1 {[%clk 0:01:53.8]} 31... fxg3+ {[%clk 0:01:28.2]}
32. fxg3 {[%clk 0:01:52.2]} 32... Rd2+ {[%clk 0:01:26.5]} 33. Nxd2 {[%clk
0:01:49.3]} 33... Rxd2+ {[%clk 0:01:25]} 0-1

[Event "Live Chess"]
[Site "Chess.com"]
[Date "2023.05.20"]
[Round "-"]
[White "JanMur7"]
[Black "NatashaRegan"]
[Result "1-0"]
[WhiteElo "1963"]
[BlackElo "1838"]
[TimeControl "300"]
[EndTime "9:15:23 PDT"]
[Termination "JanMur7 won by resignation"]

1. e4 {[%clk 0:04:58.3]} 1... Nf6 {[%clk 0:04:58.1]} 2. Nc3 {[%clk 0:04:56.9]}
2... d5 {[%clk 0:04:56.5]} 3. e5 {[%clk 0:04:56.2]} 3... Ne4 {[%clk 0:04:55.2]}
4. Nxe4 {[%clk 0:04:55]} 4... dxe4 {[%clk 0:04:53.3]} 5. d4 {[%clk 0:04:53.9]}
5... exd3 {[%clk 0:04:51.6]} 6. Bxd3 {[%clk 0:04:52.6]} 6... Nc6 {[%clk
0:04:49.3]} 7. Nf3 {[%clk 0:04:51.9]} 7... Bg4 {[%clk 0:04:47]} 8. O-O {[%clk
0:04:46.5]} 8... Nxe5 {[%clk 0:04:44.7]} 9. Bb5+ {[%clk 0:04:23.2]} 9... c6
{[%clk 0:04:43.5]} 10. Qxd8+ {[%clk 0:04:19.3]} 10... Rxd8 {[%clk 0:04:37.4]}
11. Nxe5 {[%clk 0:04:18.1]} 11... Bf5 {[%clk 0:04:34.3]} 12. Bd3 {[%clk
0:04:15.5]} 12... Bxd3 {[%clk 0:04:30.1]} 13. Nxd3 {[%clk 0:04:15.4]} 13... e6
{[%clk 0:04:29]} 14. Be3 {[%clk 0:04:13]} 14... b6 {[%clk 0:04:23.9]} 15. Rad1
{[%clk 0:04:09.1]} 15... c5 {[%clk 0:04:19.6]} 16. Ne5 {[%clk 0:04:05.7]} 16...
Bd6 {[%clk 0:04:16]} 17. Nc6 {[%clk 0:04:04.4]} 17... Rd7 {[%clk 0:04:14.3]} 18.
Nxa7 {[%clk 0:03:49.3]} 18... Bxh2+ {[%clk 0:04:11]} 19. Kxh2 {[%clk 0:03:47.4]}
19... Rxa7 {[%clk 0:04:10]} 20. a3 {[%clk 0:03:45.6]} 20... Ke7 {[%clk
0:04:07.4]} 21. Bf4 {[%clk 0:03:43.1]} 21... f6 {[%clk 0:04:05.5]} 22. Rd2
{[%clk 0:03:38.4]} 22... e5 {[%clk 0:04:04]} 23. Be3 {[%clk 0:03:37.5]} 23...
Ke6 {[%clk 0:03:58.7]} 24. Rfd1 {[%clk 0:03:33.8]} 24... Kf5 {[%clk 0:03:55.8]}
25. Rd7 {[%clk 0:03:26]} 25... Ra4 {[%clk 0:03:52.3]} 26. Rxg7 {[%clk
0:03:14.4]} 26... Rh4+ {[%clk 0:03:47.6]} 27. Kg3 {[%clk 0:03:12]} 27... Rh5
{[%clk 0:03:43.4]} 28. Kf3 {[%clk 0:03:08.5]} 28... Rb8 {[%clk 0:03:39]} 29. g4+
{[%clk 0:03:06.6]} 1-0

[Event "Live Chess"]
[Site "Chess.com"]
[Date "2023.05.20"]
[Round "-"]
[White "Kr1xot4_XGOD"]
[Black "Prijmak"]
[Result "1-0"]
[WhiteElo "2127"]
[BlackElo "1018"]
[TimeControl "300"]
[EndTime "9:15:25 PDT"]
[Termination "Kr1xot4_XGOD won by checkmate"]

1. e4 {[%clk 0:04:58.3]} 1... e5 {[%clk 0:04:57.6]} 2. Nf3 {[%clk 0:04:54.7]}
2... Nc6 {[%clk 0:04:56.5]} 3. d4 {[%clk 0:04:51.4]} 3... exd4 {[%clk
0:04:54.8]} 4. Nxd4 {[%clk 0:04:48.3]} 4... Nxd4 {[%clk 0:04:53.2]} 5. Qxd4
{[%clk 0:04:46]} 5... d6 {[%clk 0:04:52.1]} 6. Nc3 {[%clk 0:04:43]} 6... Nf6
{[%clk 0:04:48.9]} 7. f3 {[%clk 0:04:35.8]} 7... Be7 {[%clk 0:04:45.7]} 8. Bf4
{[%clk 0:04:32.3]} 8... b6 {[%clk 0:04:43.4]} 9. O-O-O {[%clk 0:04:25.4]} 9...
Bb7 {[%clk 0:04:41.4]} 10. e5 {[%clk 0:04:22.5]} 10... Nh5 {[%clk 0:04:26.4]}
11. Bb5+ {[%clk 0:04:22.1]} 11... c6 {[%clk 0:04:23.6]} 12. exd6 {[%clk
0:04:20.8]} 12... Bf6 {[%clk 0:04:14.8]} 13. d7+ {[%clk 0:04:16.2]} 13... Kf8
{[%clk 0:04:06.4]} 14. Be5 {[%clk 0:04:07]} 14... cxb5 {[%clk 0:03:59.9]} 15.
Nxb5 {[%clk 0:04:04.6]} 15... a6 {[%clk 0:03:44.8]} 16. Nc7 {[%clk 0:03:47.7]}
16... Rc8 {[%clk 0:03:41.2]} 17. dxc8=Q {[%clk 0:03:43.4]} 17... Qxc8 {[%clk
0:03:40]} 18. Bxf6 {[%clk 0:03:39.7]} 18... Nxf6 {[%clk 0:03:35.9]} 19. Rhe1
{[%clk 0:03:38.9]} 19... Qxc7 {[%clk 0:03:31.9]} 20. Qd8+ {[%clk 0:03:35.3]}
20... Qxd8 {[%clk 0:03:28.4]} 21. Rxd8+ {[%clk 0:03:32.4]} 21... Ne8 {[%clk
0:03:27.3]} 22. Rdxe8# {[%clk 0:03:30.8]} 1-0

[Event "Live Chess"]
[Site "Chess.com"]
[Date "2023.05.20"]
[Round "-"]
[White "xx_blindpuffin_xx"]
[Black "Bob2pen"]
[Result "1-0"]
[WhiteElo "2203"]
[BlackElo "1588"]
[TimeControl "300"]
[EndTime "9:15:29 PDT"]
[Termination "xx_blindpuffin_xx won by resignation"]

1. d4 {[%clk 0:04:59.1]} 1... Nf6 {[%clk 0:04:57.8]} 2. Bf4 {[%clk 0:04:58.4]}
2... d6 {[%clk 0:04:56.5]} 3. e3 {[%clk 0:04:56.6]} 3... g6 {[%clk 0:04:55.2]}
4. Nf3 {[%clk 0:04:55.6]} 4... Bg7 {[%clk 0:04:54]} 5. h3 {[%clk 0:04:55]} 5...
O-O {[%clk 0:04:52.8]} 6. Be2 {[%clk 0:04:54]} 6... Nbd7 {[%clk 0:04:49.3]} 7.
O-O {[%clk 0:04:53.1]} 7... c5 {[%clk 0:04:48.2]} 8. c3 {[%clk 0:04:52.1]} 8...
a6 {[%clk 0:04:45.7]} 9. a4 {[%clk 0:04:50.5]} 9... Rb8 {[%clk 0:04:43.8]} 10.
a5 {[%clk 0:04:41.9]} 10... b5 {[%clk 0:04:35]} 11. axb6 {[%clk 0:04:40.8]}
11... Rxb6 {[%clk 0:04:34]} 12. Qc2 {[%clk 0:04:34.2]} 12... Bb7 {[%clk
0:04:31.6]} 13. Nbd2 {[%clk 0:04:13.6]} 13... Qc8 {[%clk 0:04:21]} 14. Nc4
{[%clk 0:04:10]} 14... Be4 {[%clk 0:04:15.4]} 15. Nxb6 {[%clk 0:04:08]} 15...
Bxc2 {[%clk 0:04:13.4]} 16. Nxc8 {[%clk 0:04:06.7]} 16... Rxc8 {[%clk
0:04:12.1]} 17. Rfc1 {[%clk 0:03:59.8]} 17... Be4 {[%clk 0:04:09.3]} 18. Bxa6
{[%clk 0:03:57.6]} 18... Rb8 {[%clk 0:04:06.5]} 19. Bc4 {[%clk 0:03:42]} 19...
Rxb2 {[%clk 0:03:57.9]} 20. Ra7 {[%clk 0:03:23.3]} 20... Nb6 {[%clk 0:03:48.4]}
21. Bf1 {[%clk 0:03:16.4]} 21... Nfd5 {[%clk 0:03:44.5]} 22. Bg3 {[%clk
0:03:09.1]} 22... Bf6 {[%clk 0:03:37.9]} 23. c4 {[%clk 0:02:58.9]} 23... Nb4
{[%clk 0:03:24.4]} 24. dxc5 {[%clk 0:02:57.5]} 24... dxc5 {[%clk 0:03:22]} 25.
Rc7 {[%clk 0:02:55.7]} 25... Nd3 {[%clk 0:03:04.6]} 26. Rd1 {[%clk 0:02:48.2]}
26... Nb4 {[%clk 0:02:33.6]} 27. Rxc5 {[%clk 0:02:38]} 27... Rc2 {[%clk
0:02:32.2]} 28. Rb5 {[%clk 0:02:33.4]} 1-0

[Event "Live Chess"]
[Site "Chess.com"]
[Date "2023.05.20"]
[Round "-"]
[White "risinghelios"]
[Black "McSlash1"]
[Result "1-0"]
[WhiteElo "1954"]
[BlackElo "2068"]
[TimeControl "300"]
[EndTime "9:15:40 PDT"]
[Termination "risinghelios won by resignation"]

1. e4 {[%clk 0:04:59.5]} 1... c5 {[%clk 0:04:59.5]} 2. c3 {[%clk 0:04:58.4]}
2... d5 {[%clk 0:04:58.7]} 3. exd5 {[%clk 0:04:57.8]} 3... Qxd5 {[%clk
0:04:58.6]} 4. d4 {[%clk 0:04:57.7]} 4... cxd4 {[%clk 0:04:58.2]} 5. cxd4 {[%clk
0:04:57.6]} 5... Nf6 {[%clk 0:04:57.7]} 6. Nf3 {[%clk 0:04:57]} 6... Bf5 {[%clk
0:04:54.9]} 7. Nc3 {[%clk 0:04:56.4]} 7... Qd8 {[%clk 0:04:54.5]} 8. Be2 {[%clk
0:04:54.3]} 8... e6 {[%clk 0:04:53.8]} 9. O-O {[%clk 0:04:53.7]} 9... Be7 {[%clk
0:04:53.1]} 10. Ne5 {[%clk 0:04:53.1]} 10... O-O {[%clk 0:04:52.3]} 11. Bf3
{[%clk 0:04:52.8]} 11... Qc7 {[%clk 0:04:50.4]} 12. Bf4 {[%clk 0:04:51.1]} 12...
Bd6 {[%clk 0:04:43.7]} 13. Nb5 {[%clk 0:04:43.2]} 13... Qb6 {[%clk 0:04:42.8]}
14. Nxd6 {[%clk 0:04:41.8]} 14... Qxd6 {[%clk 0:04:42.7]} 15. Bxb7 {[%clk
0:04:41.3]} 15... Nd5 {[%clk 0:04:31.2]} 16. Bg3 {[%clk 0:04:38]} 16... Nd7
{[%clk 0:04:06.9]} 17. Bxa8 {[%clk 0:04:36.8]} 17... Rxa8 {[%clk 0:04:03.7]} 18.
Nxd7 {[%clk 0:04:35.1]} 18... Qxd7 {[%clk 0:04:01.5]} 19. Qb3 {[%clk 0:04:34.7]}
19... Rc8 {[%clk 0:03:57.6]} 20. Rac1 {[%clk 0:04:34]} 20... a5 {[%clk
0:03:54.6]} 21. Qa4 {[%clk 0:04:19.5]} 21... Qd8 {[%clk 0:03:48.8]} 22. Qxa5
{[%clk 0:04:14.1]} 22... Qe8 {[%clk 0:03:40.1]} 23. Qb5 {[%clk 0:04:02.7]} 23...
Qf8 {[%clk 0:03:34.3]} 24. Bd6 {[%clk 0:03:53.8]} 24... Qd8 {[%clk 0:03:32.4]}
25. Qa5 {[%clk 0:03:46.3]} 25... Qd7 {[%clk 0:03:31.4]} 26. Rxc8+ {[%clk
0:03:37]} 26... Qxc8 {[%clk 0:03:31.3]} 27. Qc5 {[%clk 0:03:36.1]} 27... Qa6
{[%clk 0:03:23.3]} 28. Rc1 {[%clk 0:03:34.1]} 28... Nb6 {[%clk 0:03:01.2]} 29.
Qxb6 {[%clk 0:03:25.5]} 1-0